fUST/lending_fUST_20250207
["ID","MTS","AMOUNT","RATE_DAILY","PERIOD"]
[351966834,1738864234381,-500.0,0.00013698,2]
[351966836,1738864234390,-500.0,0.00013698,2]
[351966838,1738864234400,-500.0,0.00013698,2]
[351966840,1738864234409,-500.0,0.00013698,2]
[351966842,1738864234419,-500.0,0.00013698,2]
[351966844,1738864234429,-161.55184455,0.00013698,2]
[351966846,1738864234438,-500.0,0.00013698,2]
[351966848,1738864234448,-500.0,0.00013698,2]
[351966850,1738864234458,-500.0,0.00013698,2]
[351966852,1738864234468,-500.0,0.00013698,2]
[351966854,1738864234478,-500.0,0.00013698,2]
[351966856,1738864234487,-500.0,0.00013698,2]
[351966858,1738864234497,-500.0,0.00013698,2]
[351966860,1738864234506,-500.0,0.00013698,2]
[351966862,1738864234516,-500.0,0.00013698,2]
[351966864,1738864234526,-500.0,0.00013698,2]
[351966866,1738864234536,-500.0,0.00013698,2]
[351966868,1738864234546,-500.0,0.00013698,2]
[351966870,1738864234555,-907.18,0.00013698,2]
[351966872,1738864234565,-2976.73,0.00013698,2]
[351966874,1738864234575,-3344.81,0.00013698,2]
[351966876,1738864234584,-8344.01,0.00013698,2]
[351966878,1738864234594,-500.0,0.00013698,2]
[351966880,1738864234604,-500.0,0.00013698,2]
[351966882,1738864234614,-500.0,0.00013698,2]
[351966884,1738864234624,-743.67,0.00013698,2]
[351966886,1738864234634,-597.04,0.00013698,2]
[351966888,1738864234643,-187.29399283,0.00013698,2]
[351966890,1738864234652,-500.0,0.00013698,2]
[351966892,1738864234662,-506.18087667,0.00013698,2]
[351966894,1738864234671,-500.0,0.00013698,2]
[351966896,1738864234680,-409.41605976,0.00013698,2]
[351966898,1738864234690,-500.0,0.00013698,2]
[351966900,1738864234699,-500.0,0.00013698,2]
[351966902,1738864234708,-500.0,0.00013698,2]
[351966904,1738864234717,-795.77,0.00013698,2]
[351966906,1738864234727,-500.0,0.00013698,2]
[351966908,1738864234736,-500.0,0.00013698,2]
[351966910,1738864234746,-21728.27,0.00013698,2]
[351966912,1738864234755,-500.0,0.00013698,2]
[351966914,1738864234764,-500.0,0.00013698,2]
[351966916,1738864234773,-500.0,0.00013698,2]
[351966918,1738864234782,-500.0,0.00013698,2]
[351966920,1738864234791,-500.0,0.00013698,2]
[351966922,1738864234800,-500.0,0.00013698,2]
[351966924,1738864234809,-500.0,0.00013698,2]
[351966926,1738864234818,-500.0,0.00013698,2]
[351966927,1738864234827,-500.0,0.00013698,2]
[351966929,1738864234836,-500.0,0.00013698,2]
[351966931,1738864234845,-891.79,0.00013698,2]
[351966933,1738864234855,-500.0,0.00013698,2]
[351966935,1738864234864,-500.0,0.00013698,2]
[351966938,1738864234874,-505.74869842,0.00013698,2]
[351966939,1738864234884,-592.7,0.00013698,2]
[351966941,1738864234893,-502.93999454,0.00013698,2]
[351966944,1738864234902,-500.0,0.00013698,2]
[351966945,1738864234912,-500.0,0.00013698,2]
[351966947,1738864234921,-500.0,0.00013698,2]
[351966949,1738864234930,-580.3228832,0.00013698,2]
[351966951,1738864234939,-2419.9,0.00013698,2]
[351966953,1738864234949,-500.0,0.00013698,2]
[351966955,1738864234959,-500.0,0.00013698,2]
[351966958,1738864234968,-509.05502496,0.00013698,2]
[351966960,1738864234978,-504.24960657,0.00013698,2]
[351966961,1738864234987,-501.38868866,0.00013698,2]
[351966964,1738864234998,-500.0,0.00013698,2]
[351966965,1738864235010,-512.5450418,0.00013698,2]
[351966968,1738864235019,-500.0,0.00013698,2]
[351966970,1738864235029,-500.0,0.00013698,2]
[351966971,1738864235039,-500.0,0.00013698,2]
[351966973,1738864235048,-1400.2,0.00013698,2]
[351966976,1738864235057,-1269.49,0.00013698,2]
[351966978,1738864235067,-500.0,0.00013698,2]
[351966980,1738864235077,-500.0,0.00013698,2]
[351966981,1738864235088,-500.0,0.00013698,2]
[351966983,1738864235098,-500.0,0.00013698,2]
[351966985,1738864235108,-2294.26,0.00013698,2]
[351966987,1738864235117,-2294.26,0.00013698,2]
[351966989,1738864235128,-2294.26,0.00013698,2]
[351966992,1738864235137,-2294.26,0.00013698,2]
[351966993,1738864235146,-500.0,0.00013698,2]
[351966995,1738864235156,-2294.26,0.00013698,2]
[351966997,1738864235165,-2294.26,0.00013698,2]
[351966999,1738864235175,-2294.26,0.00013698,2]
[351967001,1738864235184,-2294.26,0.00013698,2]
[351967003,1738864235194,-500.0,0.00013698,2]
[351967005,1738864235204,-2294.26,0.00013698,2]
[351967008,1738864235215,-2294.26,0.00013698,2]
[351967010,1738864235224,-2294.26,0.00013698,2]
[351967012,1738864235233,-548.91148274,0.00013698,2]
[351967014,1738864235243,-502.47231185,0.00013698,2]
[351967016,1738864235252,-1189.73,0.00013698,2]
[351967018,1738864235261,-500.0,0.00013698,2]
[351967020,1738864235271,-949.91,0.00013698,2]
[351967022,1738864235280,-500.0,0.00013698,2]
[351967024,1738864235289,-500.0,0.00013698,2]
[351967026,1738864235298,-500.0,0.00013698,2]
[351967028,1738864235307,-500.0,0.00013698,2]
[351967029,1738864235316,-500.0,0.00013698,2]
[351967032,1738864235327,-500.0,0.00013698,2]
[351967034,1738864235336,-205.70726899,0.00013698,2]
[351967036,1738864235346,-502.16961548,0.00013698,2]
[351967037,1738864235355,-500.0,0.00013698,2]
[351967040,1738864235364,-10431.68,0.00013698,2]
[351967042,1738864235373,-600.0,0.00013698,2]
[351967044,1738864235382,-248.29634287,0.00013698,2]
[351967046,1738864235391,-500.0,0.00013698,2]
[351967048,1738864235401,-741.18,0.00013698,2]
[351967050,1738864235410,-500.0,0.00013698,2]
[351967051,1738864235419,-500.0,0.00013698,2]
[351967053,1738864235428,-500.0,0.00013698,2]
[351967056,1738864235438,-500.0,0.00013698,2]
[351967058,1738864235448,-500.0,0.00013698,2]
[351967060,1738864235457,-500.0,0.00013698,2]
[351967062,1738864235467,-500.0,0.00013698,2]
[351967064,1738864235476,-500.0,0.00013698,2]
[351967066,1738864235485,-873.77,0.00013698,2]
[351967068,1738864235495,-500.0,0.00013698,2]
[351967070,1738864235504,-500.0,0.00013698,2]
[351967072,1738864235513,-500.0,0.00013698,2]
[351967074,1738864235523,-331.01036333,0.00013698,2]
[351967076,1738864235532,-500.0,0.00013698,2]
[351967078,1738864235542,-514.39938973,0.00013698,2]
[351967080,1738864235551,-500.0,0.00013698,2]
[351967082,1738864235561,-834.87,0.00013698,2]
[351967084,1738864235570,-500.0,0.00013698,2]
[351967086,1738864235580,-500.0,0.00013698,2]
[351967088,1738864235589,-500.0,0.00013698,2]
[351967090,1738864235599,-1195.13,0.00013698,2]
[351967092,1738864235608,-1791.14,0.00013698,2]
[351967094,1738864235617,-500.0,0.00013698,2]
[351967096,1738864235627,-500.0,0.00013698,2]
[351967098,1738864235636,-500.0,0.00013698,2]
[351967100,1738864235646,-500.0,0.00013698,2]
[351967102,1738864235656,-500.0,0.00013698,2]
[351967104,1738864235665,-500.0,0.00013698,2]
[351967106,1738864235675,-500.0,0.00013698,2]
[351967108,1738864235684,-500.0,0.00013698,2]
[351967110,1738864235694,-500.0,0.00013698,2]
[351967112,1738864235703,-521.61,0.00013698,2]
[351967114,1738864235713,-595.05,0.00013698,2]
[351967116,1738864235722,-500.0,0.00013698,2]
[351967118,1738864235732,-500.0,0.00013698,2]
[351967120,1738864235742,-1976.15,0.00013698,2]
[351967122,1738864235751,-500.0,0.00013698,2]
[351967124,1738864235761,-1190.75,0.00013698,2]
[351967126,1738864235770,-443.29693061,0.00013698,2]
[351967128,1738864235779,-500.0,0.00013698,2]
[351967130,1738864235788,-500.0,0.00013698,2]
[351967132,1738864235797,-502.95719714,0.00013698,2]
[351967134,1738864235807,-500.0,0.00013698,2]
[351967136,1738864235816,-500.0,0.00013698,2]
[351967138,1738864235826,-500.0,0.00013698,2]
[351967140,1738864235837,-500.0,0.00013698,2]
[351967142,1738864235846,-500.0,0.00013698,2]
[351967144,1738864235856,-500.0,0.00013698,2]
[351967146,1738864235865,-500.0,0.00013698,2]
[351967148,1738864235875,-641.35714794,0.00013698,2]
[351967150,1738864235884,-500.0,0.00013698,2]
[351967152,1738864235894,-631.09,0.00013698,2]
[351967154,1738864235903,-4765.35,0.00013698,2]
[351967156,1738864235912,-500.0,0.00013698,2]
[351967158,1738864235921,-500.0,0.00013698,2]
[351967160,1738864235931,-500.0,0.00013698,2]
[351967162,1738864235940,-652.34,0.00013698,2]
[351967164,1738864235950,-500.0,0.00013698,2]
[351967166,1738864235959,-500.0,0.00013698,2]
[351967168,1738864235969,-1041.25,0.00013698,2]
[351967170,1738864235979,-500.0,0.00013698,2]
[351967172,1738864235989,-500.0,0.00013698,2]
[351967174,1738864235999,-439.66937966,0.00013698,2]
[351967176,1738864236011,-1847.74,0.00013698,2]
[351967178,1738864236020,-500.0,0.00013698,2]
[351967180,1738864236030,-500.0,0.00013698,2]
[351967182,1738864236041,-500.0,0.00013698,2]
[351967184,1738864236050,-500.0,0.00013698,2]
[351967186,1738864236059,-2077.48082489,0.00013698,2]
[351967188,1738864236068,-500.0,0.00013698,2]
[351967190,1738864236079,-515.55813512,0.00013698,2]
[351967192,1738864236089,-500.0,0.00013698,2]
[351967194,1738864236098,-500.0,0.00013698,2]
[351967196,1738864236108,-500.0,0.00013698,2]
[351967198,1738864236117,-500.0,0.00013698,2]
[351967200,1738864236126,-500.0,0.00013698,2]
[351967202,1738864236136,-500.0,0.00013698,2]
[351967204,1738864236145,-500.0,0.00013698,2]
[351967206,1738864236155,-500.0,0.00013698,2]
[351967209,1738864236164,-500.0,0.00013698,2]
[351967210,1738864236173,-500.0,0.00013698,2]
[351967213,1738864236183,-500.0,0.00013698,2]
[351967214,1738864236191,-915.03,0.00013698,2]
[351967217,1738864236201,-500.0,0.00013698,2]
[351967218,1738864236210,-2060.75,0.00013698,2]
[351967221,1738864236219,-738.04,0.00013698,2]
[351967222,1738864236228,-500.0,0.00013698,2]
[351967224,1738864236238,-500.0,0.00013698,2]
[351967227,1738864236247,-500.0,0.00013698,2]
[351967228,1738864236256,-500.0,0.00013698,2]
[351967231,1738864236266,-500.0,0.00013698,2]
[351967233,1738864236275,-219.10377944,0.00013698,2]
[351967234,1738864236284,-798.43,0.00013698,2]
[351967236,1738864236293,-500.0,0.00013698,2]
[351967238,1738864236303,-500.0,0.00013698,2]
[351967241,1738864236312,-500.0,0.00013698,2]
[351967242,1738864236321,-500.0,0.00013698,2]
[351967244,1738864236331,-500.0,0.00013698,2]
[351967246,1738864236340,-500.0,0.00013698,2]
[351967248,1738864236349,-500.0,0.00013698,2]
[351967250,1738864236358,-260.44724227,0.00013698,2]
[351967252,1738864236368,-1875.02,0.00013698,2]
[351967254,1738864236377,-500.0,0.00013698,2]
[351967256,1738864236387,-500.0,0.00013698,2]
[351967258,1738864236396,-547.15,0.00013698,2]
[351967260,1738864236405,-500.58466703,0.00013698,2]
[351967262,1738864236414,-179.336968,0.00013699,2]
[351967264,1738864236423,-263.606407,0.00013699,2]
[351967266,1738864236432,-344.83900729,0.00013699,2]
[351967268,1738864236443,-253.1735359,0.00013743,2]
[351967270,1738864236452,-164.363906,0.000138,4]
[351967272,1738864236462,-2294.26,0.00013834,2]
[351967274,1738864236471,-2294.26,0.00013834,2]
[351967276,1738864236480,-2294.26,0.00013834,2]
[351967278,1738864236489,-2294.26,0.00013834,2]
[351967280,1738864236499,-2294.26,0.00013834,2]
[351967282,1738864236508,-2294.26,0.00013834,2]
[351967284,1738864236518,-490.25335161,0.00013834,2]
[351967286,1738864236528,-584.59330615,0.00013834,2]
[351967288,1738864236538,-500.0,0.00013835,2]
[351967290,1738864236548,-294.69,0.00013835,2]
[351967292,1738864236558,-500.0,0.00013835,2]
[351967294,1738864236567,-500.0,0.00013835,2]
[351967297,1738864236578,-211.69,0.00013835,2]
[351967299,1738864236588,-500.0,0.00013835,2]
[351967301,1738864236597,-516.26,0.00013835,2]
[351967302,1738864236606,-500.0,0.00013835,2]
[351967304,1738864236616,-500.0,0.00013835,2]
[351967307,1738864236626,-176.5,0.00013835,2]
[351967309,1738864236637,-500.0,0.00013835,2]
[351967326,1738864236793,-500.0,0.00013835,2]
[351967328,1738864236804,-186.86,0.00013835,2]
[351967330,1738864236813,-500.0,0.00013835,2]
[351967332,1738864236824,-500.0,0.00013835,2]
[351967334,1738864236835,-500.0,0.00013835,2]
[351967336,1738864236844,-184.0,0.00013835,2]
[351967338,1738864236854,-500.0,0.00013835,2]
[351967340,1738864236863,-793.08,0.00013835,2]
[351967342,1738864236873,-812.18,0.00013835,2]
[351967344,1738864236882,-500.0,0.00013835,2]
[351967346,1738864236892,-389.54491019,0.00013835,2]
[351967348,1738864236902,-626.46,0.00013835,2]
[351967350,1738864236912,-730.97,0.00013835,2]
[351967352,1738864236922,-500.0,0.00013835,2]
[351967354,1738864236933,-630.21802614,0.00013835,2]
[351967356,1738864236942,-210.94,0.00013835,2]
[351967358,1738864236951,-500.0,0.00013835,2]
[351967360,1738864236960,-500.0,0.00013835,2]
[351967362,1738864236970,-500.0,0.00013835,2]
[351967364,1738864236979,-768.08,0.00013835,2]
[351967366,1738864236989,-500.0,0.00013835,2]
[351967368,1738864237000,-500.0,0.00013835,2]
[351967370,1738864237012,-500.0,0.00013835,2]
[351967372,1738864237022,-500.0,0.00013835,2]
[351967374,1738864237031,-500.0,0.00013835,2]
[351967376,1738864237040,-637.89,0.00013835,2]
[351967378,1738864237050,-500.0,0.00013835,2]
[351967380,1738864237060,-500.0,0.00013835,2]
[351967382,1738864237070,-500.0,0.00013835,2]
[351967384,1738864237081,-500.0,0.00013835,2]
[351967386,1738864237091,-500.0,0.00013835,2]
[351967388,1738864237100,-500.0,0.00013835,2]
[351967390,1738864237109,-500.0,0.00013835,2]
[351967392,1738864237119,-500.0,0.00013835,2]
[351967394,1738864237128,-500.0,0.00013835,2]
[351967396,1738864237137,-500.0,0.00013835,2]
[351967398,1738864237147,-715.54,0.00013835,2]
[351967400,1738864237157,-500.0,0.00013835,2]
[351967402,1738864237166,-500.0,0.00013835,2]
[351967404,1738864237176,-500.0,0.00013835,2]
[351967406,1738864237185,-500.0,0.00013835,2]
[351967408,1738864237195,-500.0,0.00013835,2]
[351967410,1738864237204,-500.0,0.00013835,2]
[351967412,1738864237214,-500.0,0.00013835,2]
[351967414,1738864237223,-500.0,0.00013835,2]
[351967416,1738864237232,-2368.84,0.00013835,2]
[351967418,1738864237242,-500.0,0.00013835,2]
[351967420,1738864237251,-379.03767898,0.00013835,2]
[351967422,1738864237261,-960.76,0.00013835,2]
[351967424,1738864237270,-500.0,0.00013835,2]
[351967426,1738864237280,-500.0,0.00013835,2]
[351967428,1738864237289,-500.0,0.00013835,2]
[351967430,1738864237299,-511.33349801,0.00013835,2]
[351967432,1738864237308,-863.94,0.00013835,2]
[351967434,1738864237318,-304.8958966,0.00013835,2]
[351967436,1738864237327,-500.0,0.00013835,2]
[351967438,1738864237336,-500.0,0.00013835,2]
[351967440,1738864237346,-618.07,0.00013835,2]
[351967442,1738864237356,-500.0,0.00013835,2]
[351967444,1738864237365,-500.0,0.00013835,2]
[351967446,1738864237374,-500.0,0.00013835,2]
[351967448,1738864237384,-500.0,0.00013835,2]
[351967450,1738864237393,-500.0,0.00013835,2]
[351967452,1738864237402,-907.18,0.00013835,2]
[351967454,1738864237412,-2976.73,0.00013835,2]
[351967456,1738864237422,-3344.81,0.00013835,2]
[351967457,1738864237431,-8344.01,0.00013835,2]
[351967458,1738864237441,-500.0,0.00013835,2]
[351967459,1738864237450,-743.67,0.00013835,2]
[351967460,1738864237460,-597.04,0.00013835,2]
[351967461,1738864237470,-500.0,0.00013835,2]
[351967462,1738864237479,-795.77,0.00013835,2]
[351967463,1738864237489,-21728.27,0.00013835,2]
[351967464,1738864237498,-500.0,0.00013835,2]
[351967465,1738864237508,-202.90779649,0.00013835,2]
[351967466,1738864237518,-500.0,0.00013835,2]
[351967467,1738864237527,-891.79,0.00013835,2]
[351967468,1738864237537,-500.0,0.00013835,2]
[351967469,1738864237547,-592.7,0.00013835,2]
[351967470,1738864237556,-500.0,0.00013835,2]
[351967471,1738864237566,-500.0,0.00013835,2]
[351967472,1738864237575,-2419.9,0.00013835,2]
[351967474,1738864237586,-475.43962598,0.00013835,2]
[351967476,1738864237595,-500.0,0.00013835,2]
[351967478,1738864237605,-1400.2,0.00013835,2]
[351967480,1738864237614,-1269.49,0.00013835,2]
[351967482,1738864237624,-500.0,0.00013835,2]
[351967484,1738864237633,-1189.73,0.00013835,2]
[351967486,1738864237644,-949.91,0.00013835,2]
[351967488,1738864237654,-500.0,0.00013835,2]
[351967490,1738864237663,-500.0,0.00013835,2]
[351967492,1738864237674,-500.0,0.00013835,2]
[351967494,1738864237683,-500.0,0.00013835,2]
[351967497,1738864237693,-10431.68,0.00013835,2]
[351967500,1738864237702,-741.18,0.00013835,2]
[351967503,1738864237712,-500.0,0.00013835,2]
[351967505,1738864237721,-500.0,0.00013835,2]
[351967508,1738864237731,-500.0,0.00013835,2]
[351967510,1738864237742,-500.0,0.00013835,2]
[351967513,1738864237751,-500.0,0.00013835,2]
[351967515,1738864237761,-873.77,0.00013835,2]
[351967517,1738864237770,-504.46726706,0.00013835,2]
[351967520,1738864237779,-500.0,0.00013835,2]
[351967523,1738864237788,-500.0,0.00013835,2]
[351967526,1738864237798,-834.87,0.00013835,2]
[351967528,1738864237807,-500.0,0.00013835,2]
[351967530,1738864237816,-1195.13,0.00013835,2]
[351967532,1738864237825,-1791.14,0.00013835,2]
[351967534,1738864237836,-500.0,0.00013835,2]
[351967536,1738864237845,-500.0,0.00013835,2]
[351967538,1738864237855,-500.0,0.00013835,2]
[351967540,1738864237864,-500.0,0.00013835,2]
[351967542,1738864237875,-500.0,0.00013835,2]
[351967544,1738864237884,-521.61,0.00013835,2]
[351967546,1738864237893,-595.05,0.00013835,2]
[351967548,1738864237903,-500.0,0.00013835,2]
[351967550,1738864237912,-1976.15,0.00013835,2]
[351967552,1738864237921,-500.0,0.00013835,2]
[351967554,1738864237931,-1190.75,0.00013835,2]
[351967556,1738864237941,-500.0,0.00013835,2]
[351967558,1738864237950,-500.0,0.00013835,2]
[351967560,1738864237961,-500.0,0.00013835,2]
[351967562,1738864237970,-500.0,0.00013835,2]
[351967564,1738864237980,-500.0,0.00013835,2]
[351967566,1738864237989,-269.56665044,0.00013835,2]
[351967568,1738864238000,-4765.35,0.00013835,2]
[351967570,1738864238014,-500.0,0.00013835,2]
[351967572,1738864238024,-500.0,0.00013835,2]
[351967574,1738864238034,-652.34,0.00013835,2]
[351967576,1738864238044,-500.0,0.00013835,2]
[351967578,1738864238053,-1041.25,0.00013835,2]
[351967580,1738864238063,-500.0,0.00013835,2]
[351967583,1738864238072,-500.0,0.00013835,2]
[351967584,1738864238085,-1847.74,0.00013835,2]
[351967586,1738864238094,-500.0,0.00013835,2]
[351967589,1738864238104,-175.55302781,0.00013835,2]
[351967591,1738864238114,-500.0,0.00013835,2]
[351967592,1738864238124,-500.0,0.00013835,2]
[351967595,1738864238133,-500.0,0.00013835,2]
[351967597,1738864238143,-512.21199998,0.00013835,2]
[351967599,1738864238153,-500.0,0.00013835,2]
[351967600,1738864238162,-500.0,0.00013835,2]
[351967603,1738864238172,-500.0,0.00013835,2]
[351967605,1738864238182,-915.03,0.00013835,2]
[351967607,1738864238191,-2060.75,0.00013835,2]
[351967609,1738864238201,-738.04,0.00013835,2]
[351967610,1738864238211,-500.0,0.00013835,2]
[351967612,1738864238220,-252.48630424,0.00013835,2]
[351967614,1738864238230,-798.43,0.00013835,2]
[351967616,1738864238240,-510.0,0.00013835,2]
[351967619,1738864238249,-500.0,0.00013835,2]
[351967620,1738864238259,-500.0,0.00013835,2]
[351967622,1738864238268,-500.0,0.00013835,2]
[351967624,1738864238278,-1875.02,0.00013835,2]
[351967627,1738864238288,-500.0,0.00013835,2]
[351967629,1738864238298,-547.15,0.00013835,2]
[351967631,1738864238307,-213.16247813,0.000139,2]
[351967632,1738864238317,-2294.26,0.00013971,2]
[351967634,1738864238327,-2294.26,0.00013971,2]
[351967637,1738864238337,-2294.26,0.00013971,2]
[351967639,1738864238347,-2294.26,0.00013971,2]
[351967641,1738864238357,-2294.26,0.00013971,2]
[351967643,1738864238366,-2294.26,0.00013971,2]
[351967645,1738864238375,-2294.27,0.00013971,2]
[351967647,1738864238385,-500.0,0.00013972,2]
[351967649,1738864238395,-484.45843773,0.00013972,2]
[351967651,1738864238404,-516.26,0.00013972,2]
[351967653,1738864238414,-500.0,0.00013972,2]
[351967655,1738864238423,-500.0,0.00013972,2]
[351967657,1738864238432,-500.0,0.00013972,2]
[351967658,1738864238442,-500.0,0.00013972,2]
[351967660,1738864238451,-500.0,0.00013972,2]
[351967663,1738864238461,-500.0,0.00013972,2]
[351967664,1738864238470,-500.0,0.00013972,2]
[351967668,1738864238480,-793.08,0.00013972,2]
[351967670,1738864238490,-812.18,0.00013972,2]
[351967671,1738864238499,-500.0,0.00013972,2]
[351967674,1738864238508,-626.46,0.00013972,2]
[351967675,1738864238518,-730.97,0.00013972,2]
[351967678,1738864238528,-500.0,0.00013972,2]
[351967679,1738864238538,-500.0,0.00013972,2]
[351967682,1738864238547,-500.0,0.00013972,2]
[351967683,1738864238557,-500.0,0.00013972,2]
[351967685,1738864238566,-768.08,0.00013972,2]
[351967687,1738864238575,-500.0,0.00013972,2]
[351967689,1738864238585,-500.0,0.00013972,2]
[351967691,1738864238595,-500.0,0.00013972,2]
[351967693,1738864238604,-637.89,0.00013972,2]
[351967695,1738864238614,-500.0,0.00013972,2]
[351967697,1738864238623,-500.0,0.00013972,2]
[351967699,1738864238633,-500.0,0.00013972,2]
[351967701,1738864238643,-500.0,0.00013972,2]
[351967703,1738864238652,-500.0,0.00013972,2]
[351967706,1738864238663,-500.0,0.00013972,2]
[351967707,1738864238673,-715.54,0.00013972,2]
[351967710,1738864238683,-500.0,0.00013972,2]
[351967711,1738864238693,-500.0,0.00013972,2]
[351967713,1738864238704,-500.0,0.00013972,2]
[351967715,1738864238713,-500.0,0.00013972,2]
[351967717,1738864238722,-500.0,0.00013972,2]
[351967719,1738864238732,-2368.84,0.00013972,2]
[351967721,1738864238742,-960.76,0.00013972,2]
[351967723,1738864238752,-500.0,0.00013972,2]
[351967725,1738864238761,-499.905653,0.00013972,2]
[351967727,1738864238771,-863.94,0.00013972,2]
[351967729,1738864238781,-500.0,0.00013972,2]
[351967731,1738864238790,-244.82,0.00013972,2]
[351967733,1738864238800,-500.0,0.00013972,2]
[351967735,1738864238810,-500.0,0.00013972,2]
[351967737,1738864238819,-500.0,0.00013972,2]
[351967739,1738864238829,-500.0,0.00013972,2]
[351967741,1738864238840,-500.0,0.00013972,2]
[351967743,1738864238849,-907.18,0.00013972,2]
[351967745,1738864238859,-2976.73,0.00013972,2]
[351967747,1738864238868,-3344.81,0.00013972,2]
[351967749,1738864238878,-8344.01,0.00013972,2]
[351967751,1738864238887,-743.67,0.00013972,2]
[351967753,1738864238897,-597.04,0.00013972,2]
[351967755,1738864238906,-500.0,0.00013972,2]
[351967757,1738864238916,-795.77,0.00013972,2]
[351967759,1738864238926,-21728.27,0.00013972,2]
[351967761,1738864238935,-500.0,0.00013972,2]
[351967763,1738864238945,-891.79,0.00013972,2]
[351967765,1738864238954,-592.7,0.00013972,2]
[351967767,1738864238964,-500.0,0.00013972,2]
[351967769,1738864238974,-500.0,0.00013972,2]
[351967771,1738864238983,-2419.9,0.00013972,2]
[351967773,1738864238992,-1400.2,0.00013972,2]
[351967775,1738864239004,-1269.49,0.00013972,2]
[351967777,1738864239014,-500.0,0.00013972,2]
[351967779,1738864239023,-1189.73,0.00013972,2]
[351967781,1738864239032,-949.91,0.00013972,2]
[351967782,1738864239043,-500.0,0.00013972,2]
[351967784,1738864239052,-10431.68,0.00013972,2]
[351967786,1738864239062,-741.18,0.00013972,2]
[351967788,1738864239072,-500.0,0.00013972,2]
[351967790,1738864239083,-500.0,0.00013972,2]
[351967792,1738864239094,-500.0,0.00013972,2]
[351967795,1738864239103,-873.77,0.00013972,2]
[351967796,1738864239114,-500.0,0.00013972,2]
[351967798,1738864239123,-834.87,0.00013972,2]
[351967800,1738864239132,-1195.13,0.00013972,2]
[351967802,1738864239142,-1791.14,0.00013972,2]
[351967808,1738864239187,-500.0,0.00013972,2]
[351967810,1738864239197,-500.0,0.00013972,2]
[351967812,1738864239207,-521.61,0.00013972,2]
[351967814,1738864239216,-595.05,0.00013972,2]
[351967816,1738864239225,-500.0,0.00013972,2]
[351967818,1738864239235,-1976.15,0.00013972,2]
[351967820,1738864239245,-464.1,0.00013972,2]
[351967822,1738864239255,-1190.75,0.00013972,2]
[351967824,1738864239264,-500.0,0.00013972,2]
[351967826,1738864239274,-500.0,0.00013972,2]
[351967828,1738864239283,-500.0,0.00013972,2]
[351967830,1738864239292,-4765.35,0.00013972,2]
[351967832,1738864239302,-500.0,0.00013972,2]
[351967834,1738864239311,-652.34,0.00013972,2]
[351967835,1738864239320,-500.0,0.00013972,2]
[351967837,1738864239330,-1041.25,0.00013972,2]
[351967839,1738864239340,-500.0,0.00013972,2]
[351967842,1738864239349,-1847.74,0.00013972,2]
[351967843,1738864239358,-500.0,0.00013972,2]